Cogmind - Beta 12 @@@ ROGUE MODE // 2023.10.11 @ 09:56:38 Player: ChromeKnight Result: Destroyed by C-35 Carver with Improved Concussive RPG Performance ------------- Evolutions (6) 3000 Regions Visited (17) 3400 Robots Destroyed (113) 565 Value Destroyed (7071) 7071 Prototype IDs (27) 540 Alien Tech Used (0) 0 Bonus (8418) 8418 TOTAL SCORE: 22994 Bonus ------- High Alert Combat Kills 1285 Follower Combat Kills 2857 Entered Garrisons 1000 Used RIF Installer 3000 Aligned with FarCom 300 Friendly Fire -24 Cogmind --------- Core Integrity 0/1150 Matter 225/300 Energy 100/100 System Corruption 6% Temperature Cool (0) Movement Core (50) Location -4/Factory Parts ------- > --- POWER (2) -------- (None) > --- PROPULSION (5) --- (None) > --- UTILITY (9) ------ Relay Coupler [NC] (32) Relay Coupler [Cutter] (5) Relay Coupler [Behemoth] (9) > --- WEAPON (3) ------- (None) > --- INVENTORY (5) ---- Relay Coupler [Specialist] (27) Relay Coupler [Proto] (9) Relay Coupler [Proto] (9) Relay Coupler [Proto] (9) Relay Coupler [Proto] (9) Peak State ------------ > --- POWER ------------ Light Nuclear Core Neutrino Core > --- PROPULSION ------- Armored Medium Treads Armored Medium Treads Armored Medium Treads Improved Heavy Treads > --- UTILITY ---------- High-capacity Storage Unit Improved Medium Armor Plating Improved Medium Armor Plating Relay Coupler [NC] Relay Coupler [Swarmer] Relay Coupler [Cutter] Relay Coupler [Duelist] Relay Coupler [Duelist] Relay Coupler [Hunter] > --- WEAPON ----------- Improved Spread Laser Improved Remote Datajack Carbide Saw > --- INVENTORY -------- Light Nuclear Core Improved Treads Improved Treads Relay Coupler [NC] Relay Coupler [NC] Relay Coupler [NC] Relay Coupler [NC] Relay Coupler [NC] Relay Coupler [Demolisher] Relay Coupler [Specialist] Relay Coupler [Behemoth] Relay Coupler [Proto] Relay Coupler [Proto] Relay Coupler [Proto] Relay Coupler [Proto] Improved Remote Datajack Improved Remote Datajack Improved Remote Datajack [Rating: 92] Favorites ----------- Power Cooled Deuterium Engine Engine Cooled Deuterium Engine Power Core Light Nuclear Core Propulsion Improved Heavy Treads Treads Improved Heavy Treads Leg Aluminum Leg Wheel Armored Huge Wheel Utility High-capacity Storage Unit Device Improved Terrain Scanner Storage High-capacity Storage Unit Processor Terrain Scan Processor Hackware Relay Coupler [Grunt] Protection Layered Light Armor Plating Weapon Great Axe Energy Gun Improved Spread Laser Ballistic Gun Light Assault Rifle Special Weapon Remote Datajack Slashing Weapon Great Axe Special Melee Weapon Improved Datajack Build | -11 -10 -10 -10 -9 -8 -8 -8 -7 -7 -6 -6 -6 -5 -5 -5 -5 -4 ------- Run | Jun Mat Min Exi Min Mat Gar Mat Fac Gar Fac Gar Fac Fac Gar Fac Gar Fac Slots Evolved 12 | . . . . . 4 . . 2 . 2 . . 2 . . . 2 Power 1 | . . . . . 1 . . . . . . . . . . . . Propulsion 3 | . . . . . . . . . . 2 . . . . . . 1 Utility 7 | . . . . . 3 . . 2 . . . . 2 . . . . Weapon 1 | . . . . . . . . . . . . . . . . . 1 Parts Attached 214 | 5 9 14 . 6 6 17 14 1 30 7 19 . 11 30 6 20 19 Power 29 | 1 3 2 . . 1 6 2 1 4 . 3 . . 2 . 3 1 Engine 15 | 1 3 2 . . 1 3 . . 1 . 3 . . 1 . . . Core 14 | . . . . . . 3 2 1 3 . . . . 1 . 3 1 Reactor . | . . . . . . . . . . . . . . . . . . Propulsion 40 | 2 2 4 . 1 . 1 . . 11 1 1 . 3 2 2 4 6 Treads 24 | 2 2 . . . . . . . 1 1 1 . 3 2 2 4 6 Leg 13 | . . 4 . . . . . . 9 . . . . . . . . Wheel 3 | . . . . 1 . 1 . . 1 . . . . . . . . Hover . | . . . . . . . . . . . . . . . . . . Flight . | . . . . . . . . . . . . . . . . . . Utility 97 | . 2 4 . 2 5 9 10 . 12 3 7 . 6 17 3 8 9 Device 11 | . 1 1 . 2 2 2 . . . . 1 . . 1 . 1 . Storage 3 | . 1 . . . 1 . 1 . . . . . . . . . . Processor 3 | . . 1 . . 1 . 1 . . . . . . . . . . Hackware 43 | . . . . . . . 5 . 7 1 3 . 3 12 2 2 8 Protection 37 | . . 2 . . 1 7 3 . 5 2 3 . 3 4 1 5 1 Artifact . | . . . . . . . . . . . . . . . . . . Weapon 48 | 2 2 4 . 3 . 1 2 . 3 3 8 . 2 9 1 5 3 Energy Gun 10 | . 1 . . . . . . . . 1 2 . . 4 . 1 1 Energy Cannon . | . . . . . . . . . . . . . . . . . . Ballistic Gun 10 | 2 1 4 . 1 . . . . . . 1 . . . . 1 . Ballistic Cannon . | . . . . . . . . . . . . . . . . . . Launcher . | . . . . . . . . . . . . . . . . . . Special Weapon 11 | . . . . . . . . . . . . . 1 5 1 2 2 Impact Weapon . | . . . . . . . . . . . . . . . . . . Slashing Weapon 9 | . . . . 1 . 1 1 . 1 1 3 . . . . 1 . Piercing Weapon . | . . . . . . . . . . . . . . . . . . Special Melee Weapon 8 | . . . . 1 . . 1 . 2 1 2 . 1 . . . . Unidentified Prototypes 4 | . . . . . . . . . . 1 2 . . 1 . . . Parts Lost 67 | . 2 9 . . 1 6 1 1 10 . 1 . . 1 . 10 25 Power 16 | . 1 2 . . . 4 1 . 4 . . . . . . 1 3 Propulsion 12 | . . 2 . . . . . . 2 . . . . . . 2 6 Utility 26 | . . 3 . . . 2 . . 3 . 1 . . . . 5 12 Weapon 13 | . 1 2 . . 1 . . 1 1 . . . . 1 . 2 4 Highest Loss Streak 22 | . 2 5 . . 1 2 1 1 2 . 1 . . 1 . 8 22 To Critical Strikes . | . . . . . . . . . . . . . . . . . . Average Slot Usage (%) 83 | . 87 88 100 93 87 82 89 74 75 77 81 86 82 86 87 87 71 Engine 7 | . 14 13 14 14 17 7 . . . 6 11 13 11 5 5 4 . Core 3 | . . . . . . 8 17 15 5 . . . . 4 5 5 7 Treads 7 | . 28 . . . . . . . . 13 13 13 11 11 10 12 15 Leg 3 | . . 27 28 16 . . . . 8 . . . . . . . . Wheel 1 | . . . . 5 9 9 9 7 1 . . . . . . . . Device 1 | . 5 3 14 14 19 2 . . . . . . . . . . . Storage 5 | . 10 4 . . 6 9 9 7 7 6 6 6 5 5 5 5 4 Processor 1 | . . 2 14 14 9 . 3 . . . . . . . . . . Hackware 20 | . . . . . . . 3 15 27 24 23 26 24 31 35 33 27 Protection 13 | . . 10 . . 9 28 28 15 14 12 12 13 15 13 10 10 6 Energy Gun 1 | . 2 . . . . . . . . 5 3 . . 2 . . 3 Ballistic Gun 2 | . 24 24 28 15 . . . . . . . . . . . . . Special Weapon 1 | . . . . . . . . . . . . . . 2 4 4 3 Slashing Weapon 6 | . . . . 5 9 16 16 7 7 1 5 6 5 5 5 4 3 Special Melee Weapon 1 | . . . . 6 6 . 1 5 . 5 2 6 4 . . . . Naked Turns . | . . . . . . . . . . . . . . . . . . Heaviest Build 116 | 7 50 48 6 10 35 44 71 60 93 80 78 73 81 110 110 116 84 Greatest Support 156 | 40 40 20 20 28 28 28 28 28 75 150 150 135 135 150 150 150 156 Greatest Overweight (x) 30 | 1 1 2 . 2 1 1 2 2 30 . . . 1 . . 1 . Average Overweight (x) . | . . . . . . . 1 2 2 . . . . . . . . Largest Inventory Capacity 20 | 5 20 20 5 5 10 10 20 20 20 20 20 20 20 20 20 20 20 Average Capacity 17 | 5 16 9 5 5 8 10 19 20 20 20 20 20 20 20 20 20 17 Most Carried 20 | 3 11 11 5 5 10 10 20 20 20 20 20 19 20 20 20 20 20 Average Carried 16 | 1 6 4 4 4 7 9 17 18 19 18 18 18 18 18 18 19 16 Final Capacity 20 | 5 20 5 5 5 10 10 20 20 20 20 20 20 20 20 20 20 5 Final Carried 20 | 3 11 4 5 5 9 10 18 20 20 20 18 19 20 20 19 20 5 Class Distribution -------------------- 40% | Botlord-Mutant 20% | Bothacker-Mutant 19% | Mutant 8% | Scavenger-Mutant 5% | Commander-Mutant Dominant Class ---------------- Mutant | -10/Materials Mutant | -10/Mines Scavenger-Mutant | -10/Exiles Scavenger-Skirmisher | -9/Mines Scavenger-Assassin | -8/Materials Scavenger-Mutant | -8/Garrison Mutant | -8/Materials Bothacker-Mutant | -7/Factory Mutant | -7/Garrison Bothacker-Mutant | -6/Factory Bothacker-Mutant | -6/Garrison Botlord-Mutant | -6/Factory Botlord-Mutant | -5/Factory Botlord-Mutant | -5/Garrison Botlord-Mutant | -5/Factory Botlord-Mutant | -5/Garrison Botlord-Mutant | -4/Factory Resources | -11 -10 -10 -10 -9 -8 -8 -8 -7 -7 -6 -6 -6 -5 -5 -5 -5 -4 ----------- Run | Jun Mat Min Exi Min Mat Gar Mat Fac Gar Fac Gar Fac Fac Gar Fac Gar Fac Matter Collected 3106 | 237 187 180 . 80 60 166 152 15 341 42 327 24 140 530 95 460 70 Remotely . | . . . . . . . . . . . . . . . . . . Salvage Created 5783 | . 197 149 . . 308 951 780 91 1458 23 185 267 272 380 . 544 178 Parts 265 | . 15 10 . . 18 58 59 6 33 1 6 9 19 11 . 8 12 Haulers Intercepted 2 | . . . . . 1 . 1 . . . . . . . . . . Recyclers Shooed 1 | . . . . . . . 1 . . . . . . . . . . Parts Field Recycled . | . . . . . . . . . . . . . . . . . . Retrieved Matter . | . . . . . . . . . . . . . . . . . . Parts Self-Destructed . | . . . . . . . . . . . . . . . . . . Prevented . | . . . . . . . . . . . . . . . . . . Kills | -11 -10 -10 -10 -9 -8 -8 -8 -7 -7 -6 -6 -6 -5 -5 -5 -5 -4 ------- Run | Jun Mat Min Exi Min Mat Gar Mat Fac Gar Fac Gar Fac Fac Gar Fac Gar Fac Combat Hostiles Destroyed 94 | . 4 7 . . 5 25 15 2 14 . 3 . 2 3 . 7 7 Melee 69 | . . . . . 5 25 15 2 14 . . . 2 1 . 4 1 Guns 25 | . 4 7 . . . . . . . . 3 . . 2 . 3 6 Classes Destroyed 17 | . 4 1 . . 4 1 2 1 . . 2 1 . 1 . . . Worker 4 | . 1 . . . . . 1 . . 1 . . 1 . . . . Builder 2 | . . . . . . . 2 . . . . . . . . . . Tunneler 2 | . . . . . 1 . . . . . . . 1 . . . . Hauler 2 | . . . . . 1 . 1 . . . . . . . . . . Recycler 3 | . . . . . . . . . . . . 2 1 . . . . Operator 1 | . . . . . . . 1 . . . . . . . . . . Watcher 8 | . 2 . . . . 1 4 . . . . . 1 . . . . Swarmer 26 | . 2 2 . . . 9 7 . 1 . . . . . . . 5 Grunt 34 | . 2 2 . . 3 12 3 . 8 . . . . . . 4 . Brawler 1 | . . . . . . . . . . . 1 . . . . . . Duelist 7 | . . . . . 1 2 1 . 2 . 1 . . . . . . Sentry 12 | . . . . . . 1 4 . 3 . . . . 1 . 3 . Specialist 1 | . . . . . . . . . . . . . . 1 . . . Hunter 5 | . . . . . 1 1 . . . . . . . 1 . . 2 Programmer 4 | . . . . . . . . 2 . . . . 2 . . . . Behemoth 1 | . . . . . . . . . . . 1 . . . . . . Assembled 3 | . . 3 . . . . . . . . . . . . . . . Best Kill Streak 7 | . 4 2 . . 3 7 6 2 7 1 1 1 2 2 . 2 5 Combat Bots Only 7 | . 2 2 . . 3 7 4 2 7 . 1 . 2 2 . 2 5 Max Kills in Single Turn 1 | . 1 1 . . 1 1 1 1 1 1 1 1 1 1 . 1 1 Gunslinging . | . . . . . . . . . . . . . . . . . . Exploded . | . . . . . . . . . . . . . . . . . . Melee 1 | . . . . . 1 1 1 1 1 . . . 1 1 . 1 1 Uniques/NPCs Destroyed . | . . . . . . . . . . . . . . . . . . Combat | -11 -10 -10 -10 -9 -8 -8 -8 -7 -7 -6 -6 -6 -5 -5 -5 -5 -4 -------- Run | Jun Mat Min Exi Min Mat Gar Mat Fac Gar Fac Gar Fac Fac Gar Fac Gar Fac Damage Taken 15083 | . 551 662 . . 330 1297 662 74 2056 124 920 157 532 759 473 2039 4447 Core 2930 | . 94 65 . . 86 108 132 30 620 16 233 . 63 56 46 220 1161 Absorbed by Shields 400 | . . . . . 122 99 . . . . . . . . . . 179 Redirected to Shielding 205 | . . . . . . 26 22 9 31 . 42 . 53 22 . . . Regen/Repaired (Parts) 366 | . . . . . . . . . . . . 11 . . 355 . . Core Remaining (%) 52 | 100 . . . 36 . . 40 . 7 . . 70 . . . 61 . Volleys Fired 236 | . 23 44 . . . . . . . . 38 . 2 49 9 37 34 Largest 2 | . 2 2 . . . . . . . . 2 . 1 1 1 1 1 Hottest 100 | . 60 60 . . . . . . . . 100 . 5 75 5 75 75 Shots Fired 295 | . 46 76 . . . . . . . . 41 . 2 50 9 37 34 Gun 205 | . 46 76 . . . . . . . . 41 . . 9 . 6 27 Cannon . | . . . . . . . . . . . . . . . . . . Launcher . | . . . . . . . . . . . . . . . . . . Special 90 | . . . . . . . . . . . . . 2 41 9 31 7 Kinetic 98 | . 38 59 . . . . . . . . 1 . . . . . . Thermal 107 | . 8 17 . . . . . . . . 40 . . 9 . 6 27 Explosive . | . . . . . . . . . . . . . . . . . . Electromagnetic . | . . . . . . . . . . . . . . . . . . Robot Hit Streak 25 | . 10 6 . . . . . . . . 25 . 1 9 15 10 7 Robot Miss Streak 10 | . 3 5 . . . . . . . . 3 . 1 2 1 2 10 Penetration Max . | . . . . . . . . . . . . . . . . . . Secondary Targets . | . . . . . . . . . . . . . . . . . . Shots Hit Robots 501 | . 30 47 . . 18 52 47 5 80 7 46 4 20 47 16 53 29 Core Hits 230 | . 12 20 . . 8 24 20 2 28 1 47 2 5 20 . 17 24 Critical Kills . | . . . . . . . . . . . . . . . . . . Critical Parts Destroyed . | . . . . . . . . . . . . . . . . . . Critical Strikes 21 | . . . . . 2 1 . . 8 . . . 2 2 2 4 . Sever 21 | . . . . . 2 1 . . 8 . . . 2 2 2 4 . Melee Attacks 429 | . . . . . 23 86 56 5 101 11 27 26 31 14 11 38 . Impact . | . . . . . . . . . . . . . . . . . . Slashing 395 | . . . . . 23 86 47 5 97 4 20 25 25 14 11 38 . Piercing . | . . . . . . . . . . . . . . . . . . Sneak Attacks 38 | . . . . . 2 5 10 . . 4 3 4 8 . . 2 . Combat Hostiles 7 | . . . . . . 4 . . . . 1 . . . . 2 . Follow-up Attacks 3 | . . . . . . 2 1 . . . . . . . . . . Damage Inflicted 16142 | . 390 401 . . 903 2502 2262 227 4828 68 1075 263 730 589 310 1185 409 Guns 2602 | . 390 401 . . . . . . . . 1075 . . 185 . 160 391 Cannons . | . . . . . . . . . . . . . . . . . . Explosions . | . . . . . . . . . . . . . . . . . . Melee 13522 | . . . . . 903 2502 2262 227 4828 68 . 263 730 404 310 1025 . Ramming 18 | . . . . . . . . . . . . . . . . . 18 Kinetic 664 | . 346 301 . . . . . . . . 17 . . . . . . Thermal 1938 | . 44 100 . . . . . . . . 1058 . . 185 . 160 391 Explosive . | . . . . . . . . . . . . . . . . . . Electromagnetic . | . . . . . . . . . . . . . . . . . . Impact . | . . . . . . . . . . . . . . . . . . Slashing 13522 | . . . . . 903 2502 2262 227 4828 68 . 263 730 404 310 1025 . Piercing . | . . . . . . . . . . . . . . . . . . Highest Corruption 7 | . . . . . . 2 2 1 2 2 2 2 2 2 7 7 4 Average Corruption 2 | . . . . . . 1 2 1 1 2 2 2 1 2 3 7 4 Corruption Purged . | . . . . . . . . . . . . . . . . . . Corruption Blocked 8 | . . . . . . . . . . . . . 8 . . . . Effects 259 | . . . . . . 8 11 1 27 10 40 21 12 24 18 87 . Message Errors 62 | . . . . . . 1 2 . 8 2 9 4 4 7 2 23 . Matter Fused 59 | . . . . . . 2 2 . 8 1 13 3 3 6 3 18 . Heat Flow Errors 38 | . . . . . . 1 1 1 3 4 3 4 1 3 4 13 . Energy Discharges 35 | . . . . . . . 3 . 2 3 7 6 2 2 4 6 . Parts Fused 6 | . . . . . . . . . 1 . . . . 1 1 3 . Data Loss (minor) 33 | . . . . . . 3 1 . 1 . 2 2 . 2 4 18 . Data Loss (major) 15 | . . . . . . 1 1 . 3 . 2 1 2 2 . 3 . Misfires 3 | . . . . . . . . . . . 2 . . 1 . . . Alerts 8 | . . . . . . . 1 . 1 . 2 1 . . . 3 . Overload Shots . | . . . . . . . . . . . . . . . . . . Overflow Damage 983 | . . . . . 32 140 359 . 163 . . 46 175 . 68 . . Projectiles . | . . . . . . . . . . . . . . . . . . Explosions . | . . . . . . . . . . . . . . . . . . Melee 983 | . . . . . 32 140 359 . 163 . . 46 175 . 68 . . Knockbacks . | . . . . . . . . . . . . . . . . . . Impact . | . . . . . . . . . . . . . . . . . . Kinetic . | . . . . . . . . . . . . . . . . . . Secondary . | . . . . . . . . . . . . . . . . . . Self-Inflicted Damage . | . . . . . . . . . . . . . . . . . . Shots . | . . . . . . . . . . . . . . . . . . Rammed 5 | . . . . . . . . . . . . . . . . . 5 Targets Rammed 6 | . . . . . . . . . . . . . . . . . 6 Kicked . | . . . . . . . . . . . . . . . . . . Crushed 1 | . . . . . . . . . . . . . . . . . 1 Highest Temperature 444 | . 26 276 . . 6 191 292 226 113 152 444 254 197 290 222 246 252 Average Temperature 93 | . 7 103 . . 6 58 105 113 50 62 94 107 104 117 85 90 109 Received Heat Transfer 2990 | . 171 237 . . 73 394 162 . 483 42 96 36 66 96 45 549 540 Effects 3 | . . 1 . . . . . . . . 2 . . . . . . Shutdowns 1 | . . . . . . . . . . . 1 . . . . . . Energy Bleed 1 | . . . . . . . . . . . 1 . . . . . . Interference 1 | . . 1 . . . . . . . . . . . . . . . Siege Activations . | . . . . . . . . . . . . . . . . . . Robots Corrupted . | . . . . . . . . . . . . . . . . . . Combat Hostiles . | . . . . . . . . . . . . . . . . . . Parts Fried . | . . . . . . . . . . . . . . . . . . Impact Corruptions . | . . . . . . . . . . . . . . . . . . Robots Melted . | . . . . . . . . . . . . . . . . . . Combat Hostiles . | . . . . . . . . . . . . . . . . . . Parts Melted 2 | . . 1 . . . . . . . . . . . . . . 1 Heat Transferred 1757 | . 100 225 . . . . . . . . 825 . . 145 . 140 322 Parts Sabotaged 1 | . . . . . . . . . . . . . 1 . . . . Parts Stolen . | . . . . . . . . . . . . . . . . . . Parts Stripped . | . . . . . . . . . . . . . . . . . . Power Chain Reactions . | . . . . . . . . . . . . . . . . . . Missiles Intercepted . | . . . . . . . . . . . . . . . . . . Alert | -11 -10 -10 -10 -9 -8 -8 -8 -7 -7 -6 -6 -6 -5 -5 -5 -5 -4 ------- Run | Jun Mat Min Exi Min Mat Gar Mat Fac Gar Fac Gar Fac Fac Gar Fac Gar Fac Peak Influence 2559 | . 81 95 . 81 228 1478 1042 453 2484 1362 2559 1583 871 827 438 1096 723 Initial 1343 | . . 30 . . . 47 720 410 317 1304 745 1343 735 422 434 47 575 Average 803 | . 37 15 . 22 86 707 871 422 1243 1241 1382 1340 733 557 315 404 625 Maximum Alert Level 5 | . . . . . 1 4 3 2 5 4 5 4 3 3 2 3 3 Low Security (%) 15 | 100 100 100 . 100 96 11 . . . . . . . . 5 7 . Level 1 10 | . . . . . 3 13 . . 8 . . . . . 47 49 . Level 2 22 | . . . . . . 27 . 100 9 . . . 31 89 47 32 78 Level 3 24 | . . . . . . 26 100 . 33 2 45 . 68 10 . 11 21 Level 4 18 | . . . . . . 20 . . 19 97 23 100 . . . . . Level 5 8 | . . . . . . . . . 28 . 30 . . . . . . High Security . | . . . . . . . . . . . . . . . . . . Max Security . | . . . . . . . . . . . . . . . . . . Squads Dispatched 31 | . . . . . 7 . 3 2 . 2 . 7 4 . 2 . 4 Investigation 5 | . . . . . 2 . . 2 . . . . . . 1 . . Extermination 8 | . . . . . . . . . . 1 . 4 2 . 1 . . Reinforcement 8 | . . . . . 2 . 2 . . . . 1 1 . . . 2 Assault 7 | . . . . . . . 1 . . 1 . 2 1 . . . 2 Garrison 3 | . . . . . 3 . . . . . . . . . . . . Intercept . | . . . . . . . . . . . . . . . . . . Searches Triggered . | . . . . . . . . . . . . . . . . . . Construction Impeded . | . . . . . . . . . . . . . . . . . . Haulers Reinforced 1 | . . . . . . . . . . . . 1 . . . . . Active Scanning Responses . | . . . . . . . . . . . . . . . . . . Cargo Convoy Interrupts 1 | . . . . . . . . . . . . . 1 . . . . Stealth | -11 -10 -10 -10 -9 -8 -8 -8 -7 -7 -6 -6 -6 -5 -5 -5 -5 -4 --------- Run | Jun Mat Min Exi Min Mat Gar Mat Fac Gar Fac Gar Fac Fac Gar Fac Gar Fac Distress Signals 5 | . 1 . . . 1 . 1 . . 1 . . . . . . 1 Communications Jammed 65 | . . . . . . . . . . . . . 58 . . . 7 Distress Signals 65 | . . . . . . . . . . . . . 58 . . . 7 Times Spotted 296 | . 9 6 . 1 15 42 29 2 44 7 15 21 21 23 13 31 17 Peak Tracking Total 10 | . 4 2 . 1 4 6 6 2 8 3 4 4 5 6 4 10 7 Tactical Retreats 32 | . . 1 . . . 12 2 . 7 . . . 1 4 2 . 3 Traps | -11 -10 -10 -10 -9 -8 -8 -8 -7 -7 -6 -6 -6 -5 -5 -5 -5 -4 ------- Run | Jun Mat Min Exi Min Mat Gar Mat Fac Gar Fac Gar Fac Fac Gar Fac Gar Fac Traps Triggered 29 | . 3 . . . 2 8 1 1 8 1 1 . 1 . . 1 2 Indirectly . | . . . . . . . . . . . . . . . . . . Trap Hack Attempts 54 | . . . . 52 1 . . . 1 . . . . . . . . Triggered . | . . . . . . . . . . . . . . . . . . Disarmed 2 | . . . . . 1 . . . 1 . . . . . . . . Reprogrammed 4 | . . . . 4 . . . . . . . . . . . . . Reused 5 | . . . . . . . . . . . 3 . . . . 2 . Traps Extracted 4 | . . . . 4 . . . . . . . . . . . . . Installed 7 | . . . . . . . . . . . 4 . . . . 3 . Triggered 6 | . . . . . . . . . . . 3 . 1 . . 2 . Most Traps Carried 6 | . . . . 2 2 6 4 4 4 4 4 . . . . 1 . Exploded 1 | . . . . . . . . . 1 . . . . . . . . Machines | -11 -10 -10 -10 -9 -8 -8 -8 -7 -7 -6 -6 -6 -5 -5 -5 -5 -4 ---------- Run | Jun Mat Min Exi Min Mat Gar Mat Fac Gar Fac Gar Fac Fac Gar Fac Gar Fac Machines Disabled 24 | . . . . . . 7 . . 2 . 5 . . 2 . 7 1 Max in Single Turn 1 | . . . . . . 1 . . 1 . 1 . . 1 . 1 . Garrison Access 2 | . . . . . . . 1 . . . . . . . . . 1 Garrison Relay 18 | . . . . . . 4 . . 4 . 5 . . 3 . 2 . Phase Generator 1 | . . . . . . . . . 1 . . . . . . . . Machines Repaired . | . . . . . . . . . . . . . . . . . . Machines Sabotaged . | . . . . . . . . . . . . . . . . . . Overloaded Fab Kills . | . . . . . . . . . . . . . . . . . . Hacking | -11 -10 -10 -10 -9 -8 -8 -8 -7 -7 -6 -6 -6 -5 -5 -5 -5 -4 --------- Run | Jun Mat Min Exi Min Mat Gar Mat Fac Gar Fac Gar Fac Fac Gar Fac Gar Fac Machines Accessed 29 | . 2 . 1 1 2 4 1 1 4 2 2 . 1 1 4 1 2 Terminals 16 | . 2 . . . . 4 . . 4 1 2 . . 1 . 1 1 Fabricators 1 | . . . . . . . . . . . . . . . 1 . . Repair Stations 3 | . . . . . 1 . . . . . . . . . 2 . . Recycling Units . | . . . . . . . . . . . . . . . . . . Scanalyzers 1 | . . . . . . . 1 . . . . . . . . . . Garrison Access 6 | . . . . . 1 . . 1 . 1 . . 1 . 1 . 1 Total Hacks 67 | . 3 . 1 1 6 7 10 2 7 3 3 . 2 1 11 2 8 Successful 36 | . 3 . 1 1 2 1 8 2 2 1 1 . 1 1 8 1 3 Failed 31 | . . . . . 4 6 2 . 5 2 2 . 1 . 3 1 5 Catastrophic 8 | . . . . . 1 2 . . 1 1 1 . 1 . 1 . . Database Lockouts . | . . . . . . . . . . . . . . . . . . Manual 17 | . 2 . 1 . 3 . . 1 . 1 . . 1 . 3 . 5 Terminals 27 | . 3 . . . . 7 . . 7 1 3 . . 1 . 2 3 Fabricators 1 | . . . . . . . . . . . . . . . 1 . . Repair Stations 10 | . . . . . 2 . . . . . . . . . 8 . . Recycling Units . | . . . . . . . . . . . . . . . . . . Scanalyzers 10 | . . . . . . . 10 . . . . . . . . . . Garrison Access 17 | . . . . . 4 . . 2 . 2 . . 2 . 2 . 5 Terminal Hacks 10 | . 1 . 1 1 . 1 . . 2 . 1 . . 1 . 1 1 Open Door 2 | . . . . 1 . . . . 1 . . . . . . . . Emergency Access Points 4 | . . . . . . 1 . . 1 . . . . 1 . 1 . Terminal Index 1 | . . . . . . . . . . . . . . . . . 1 Zone Layout 1 | . 1 . . . . . . . . . . . . . . . . Security Stations 1 | . . . . . . . . . . . 1 . . . . . . EX-Prototype ID Bank 1 | . . . 1 . . . . . . . . . . . . . . Fabricator Hacks . | . . . . . . . . . . . . . . . . . . Repair Station Hacks 6 | . . . . . 1 . . . . . . . . . 5 . . Scan Component 3 | . . . . . . . . . . . . . . . 3 . . Repair 2 | . . . . . . . . . . . . . . . 2 . . Refit 1 | . . . . . 1 . . . . . . . . . . . . Recycling Unit Hacks . | . . . . . . . . . . . . . . . . . . Scanalyzer 8 | . . . . . . . 8 . . . . . . . . . . Insert Component 4 | . . . . . . . 4 . . . . . . . . . . Analyze 4 | . . . . . . . 4 . . . . . . . . . . Garrison Access Hacks 6 | . . . . . 1 . . 1 . 1 . . 1 . 1 . 1 Unlock Access 6 | . . . . . 1 . . 1 . 1 . . 1 . 1 . 1 Unauthorized Hacks 6 | . 2 . . . . . . 1 . . . . . . 2 . 1 Terminals 2 | . 2 . . . . . . . . . . . . . . . . Botnet 2 | . 2 . . . . . . . . . . . . . . . . Fabricators 1 | . . . . . . . . . . . . . . . 1 . . Liberate 1 | . . . . . . . . . . . . . . . 1 . . Repair Stations 1 | . . . . . . . . . . . . . . . 1 . . Mechanics 1 | . . . . . . . . . . . . . . . 1 . . Recycling Units . | . . . . . . . . . . . . . . . . . . Scanalyzers . | . . . . . . . . . . . . . . . . . . Garrison Access 2 | . . . . . . . . 1 . . . . . . . . 1 Reprogram 2 | . . . . . . . . 1 . . . . . . . . 1 Data Cores Recovered . | . . . . . . . . . . . . . . . . . . Used . | . . . . . . . . . . . . . . . . . . Hacking Detections 19 | . 1 . . . 1 3 . 1 3 2 1 . 1 1 2 1 2 Full Trace Events 7 | . . . . . 1 3 . . 1 . 1 . . . 1 . . Feedback Events 2 | . . . . . . 1 . . 1 . . . . . . . . Corruption 2 | . . . . . . 1 . . 1 . . . . . . . . Feedback Blocked . | . . . . . . . . . . . . . . . . . . Robot Schematics Acquired . | . . . . . . . . . . . . . . . . . . Robots Built . | . . . . . . . . . . . . . . . . . . Authchips . | . . . . . . . . . . . . . . . . . . Time . | . . . . . . . . . . . . . . . . . . Total Robot Build Rating . | . . . . . . . . . . . . . . . . . . Part Schematics Acquired 4 | . . . . . . . 4 . . . . . . . . . . Parts Built . | . . . . . . . . . . . . . . . . . . Authchips . | . . . . . . . . . . . . . . . . . . Time . | . . . . . . . . . . . . . . . . . . Total Part Build Rating . | . . . . . . . . . . . . . . . . . . Parts Repaired 2 | . . . . . . . . . . . . . . . 2 . . Time 130 | . . . . . . . . . . . . . . . 130 . . Parts Recycled . | . . . . . . . . . . . . . . . . . . Recycled Matter . | . . . . . . . . . . . . . . . . . . Retrieved Matter . | . . . . . . . . . . . . . . . . . . Retrieved Components . | . . . . . . . . . . . . . . . . . . Parts Scanalyzed 4 | . . . . . . . 4 . . . . . . . . . . Part Schematics Acquired 4 | . . . . . . . 4 . . . . . . . . . . Parts Damaged . | . . . . . . . . . . . . . . . . . . Bothacking | -11 -10 -10 -10 -9 -8 -8 -8 -7 -7 -6 -6 -6 -5 -5 -5 -5 -4 ------------ Run | Jun Mat Min Exi Min Mat Gar Mat Fac Gar Fac Gar Fac Fac Gar Fac Gar Fac Used RIF Installer 6 | . . . . . . 1 . . 1 . 2 . . 1 . 1 . Command Fork 1 | . . . . . . . . . . . . . . 1 . . . Signal Jammer 1 | . . . . . . . . . . . 1 . . . . . . Robot Detection 1 | . . . . . . . . . 1 . . . . . . . . Watcher Feeds 1 | . . . . . . . . . . . . . . . . 1 . Autoassimilate 1 | . . . . . . . . . . . 1 . . . . . . Robots Hacked 62 | . . . . . . . 5 . 3 6 3 1 6 13 8 13 4 Non-combat 8 | . . . . . . . . . . 4 . 1 . . 1 . 2 Combat 54 | . . . . . . . 5 . 3 2 3 . 6 13 7 13 2 Autoassimilated 4 | . . . . . . . . . . . . . 1 . 1 1 1 Robot Hacks Applied 58 | . . . . . . . 5 . 3 6 3 1 5 13 7 12 3 start_evac 1 | . . . . . . . . . . . . . . . . . 1 link_complan 1 | . . . . . . . . . . . . . . . . . 1 overload_power 1 | . . . . . . . . . . . . . . 1 . . . amplify_resonance 4 | . . . . . . . . . . . . . . 2 1 1 . reboot_system 1 | . . . . . . . . . . . . . . . . 1 . overwrite_iff 4 | . . . . . . . . . . . . . 2 1 . 1 . formatsys_low 4 | . . . . . . . . . . 3 . 1 . . . . . formatsys_high 42 | . . . . . . . 5 . 3 3 3 . 3 9 6 9 1 Relay Couplers Released 71 | . . . . . . 16 1 . 18 . 16 . . 13 . 7 . Machine Destruction 71 | . . . . . . 16 1 . 18 . 16 . . 13 . 7 . Attached 43 | . . . . . . . 5 . 7 1 3 . 3 12 2 2 8 Fabnet Peak Effective % . | . . . . . . . . . . . . . . . . . . Robots Rewired 20 | . . . . . . 2 . . 3 . 2 . . 9 . 4 . Allies Hacked 1 | . . . . . . . . . . . . . 1 . . . . Hacks Repelled . | . . . . . . . . . . . . . . . . . . Allies | -11 -10 -10 -10 -9 -8 -8 -8 -7 -7 -6 -6 -6 -5 -5 -5 -5 -4 -------- Run | Jun Mat Min Exi Min Mat Gar Mat Fac Gar Fac Gar Fac Fac Gar Fac Gar Fac Total Allies 87 | . . . . 5 . 2 5 1 8 6 7 1 6 19 8 17 2 Largest Group 8 | . . . . 5 5 2 2 2 6 8 8 8 7 8 4 4 4 Highest-Rated Group 313 | . . . . 83 83 50 90 30 254 189 295 313 306 238 106 61 65 Highest-Rated Ally 95 | . . . . 31 31 25 90 21 95 32 95 85 85 49 29 49 65 Total Orders 94 | . . . . 2 . . . . 5 11 32 24 9 9 . 2 . STAY 45 | . . . . 1 . . . . 3 7 13 7 6 7 . 1 . ROAM 5 | . . . . . . . . . . 1 2 . 1 . . 1 . FOLLOW 34 | . . . . 1 . . . . 2 3 12 14 1 1 . . . GUARD 3 | . . . . . . . . . . . 2 . 1 . . . . AID 4 | . . . . . . . . . . . . 3 . 1 . . . DROP 1 | . . . . . . . . . . . 1 . . . . . . PICKUP 2 | . . . . . . . . . . . 2 . . . . . . Ally Attacks 465 | . . . . 6 52 3 9 7 66 8 49 58 37 64 23 54 29 Total Damage 14132 | . . . . 91 655 117 262 105 2321 130 1977 2757 1361 1795 359 1519 683 Kills 108 | . . . . 3 6 2 1 . 16 2 18 24 13 8 3 9 3 Allies Corrupted 4 | . . . . . . . . 1 . . . . 1 1 1 . . Allies Melted 3 | . . . . . . . . . . . 1 . . 1 . 1 . Intel | -11 -10 -10 -10 -9 -8 -8 -8 -7 -7 -6 -6 -6 -5 -5 -5 -5 -4 ------- Run | Jun Mat Min Exi Min Mat Gar Mat Fac Gar Fac Gar Fac Fac Gar Fac Gar Fac Robot Analysis Total . | . . . . . . . . . . . . . . . . . . Derelict Logs Recovered 2 | . . 1 . 1 . . . . . . . . . . . . . Drone Launches . | . . . . . . . . . . . . . . . . . . Drone Recoveries . | . . . . . . . . . . . . . . . . . . Exploration | -11 -10 -10 -10 -9 -8 -8 -8 -7 -7 -6 -6 -6 -5 -5 -5 -5 -4 ------------- Run | Jun Mat Min Exi Min Mat Gar Mat Fac Gar Fac Gar Fac Fac Gar Fac Gar Fac Turns Passed 22988 | 66 511 1201 299 692 502 1966 889 219 3583 822 3231 1626 1344 2114 845 2701 377 Spaces Moved 9918 | 42 197 326 249 384 331 1217 511 147 1173 430 1374 590 641 917 294 863 232 Core 154 | 13 . . . 2 . . . . 32 . . . . . . . 107 Treads 5529 | 29 197 . . . . . . . 69 430 1374 590 641 917 294 863 125 Legs 1527 | . . 326 249 159 . . . . 793 . . . . . . . . Wheels 2708 | . . . . 223 331 1217 511 147 279 . . . . . . . . Hover . | . . . . . . . . . . . . . . . . . . Flight . | . . . . . . . . . . . . . . . . . . Fastest Speed 50 | 50 160 120 120 100 100 100 115 130 115 160 160 165 165 160 160 160 50 Average Speed 158 | 134 211 162 120 108 107 114 127 130 244 160 162 165 165 163 160 160 111 Slowest Speed 1550 | 160 240 260 120 150 115 115 130 130 1550 160 165 165 250 165 160 240 170 Overloaded Moves . | . . . . . . . . . . . . . . . . . . Propulsion Burnouts . | . . . . . . . . . . . . . . . . . . Robots Hopped . | . . . . . . . . . . . . . . . . . . Cave-ins Triggered . | . . . . . . . . . . . . . . . . . . Exploration Rate (%) 41 | 4 40 57 62 76 36 92 47 3 88 11 82 6 7 64 5 57 11 Regions Visited 17 Branch Regions 3 Pre-discovered Areas 1 | . . 1 . . . . . . . . . . . . . . . Known Exits Taken 5 | . . . . . 1 . . 1 . 1 . . 1 . 1 . . Unknown Exits Taken 7 | 1 1 1 1 1 . . 1 . . . . 1 . . . . . Scrap Searched 3 | . . . . 3 . . . . . . . . . . . . . Spaces Dug 45 | . . . . . 4 . 2 . . 2 5 22 9 . . 1 . Terrain Destroyed 45 | . . . . . 4 . 2 . . 2 5 22 9 . . 1 . Melee 45 | . . . . . 4 . 2 . . 2 5 22 9 . . 1 . Projectile . | . . . . . . . . . . . . . . . . . . AOE . | . . . . . . . . . . . . . . . . . . Terrain Rammed . | . . . . . . . . . . . . . . . . . . Walls Destroyed . | . . . . . . . . . . . . . . . . . . Machines Disabled . | . . . . . . . . . . . . . . . . . . Actions | -11 -10 -10 -10 -9 -8 -8 -8 -7 -7 -6 -6 -6 -5 -5 -5 -5 -4 --------- Run | Jun Mat Min Exi Min Mat Gar Mat Fac Gar Fac Gar Fac Fac Gar Fac Gar Fac Total 16443 | 49 243 933 249 662 454 1711 696 169 1802 557 2301 1199 881 1480 643 2092 322 Wait 5170 | . 4 534 . 203 82 293 95 16 401 95 823 582 184 424 320 1111 3 Move 9896 | 41 196 325 248 383 330 1215 510 146 1171 429 1372 589 640 915 293 861 232 Hop . | . . . . . . . . . . . . . . . . . . Pick Up 132 | 3 10 7 1 7 8 14 14 1 17 6 6 1 6 12 2 11 6 Fast Attach 68 | 5 6 4 . 1 . 8 3 . 15 1 3 . 3 6 2 10 1 Attach 73 | . 2 7 . 1 3 6 4 . 8 4 4 . 4 8 2 5 15 Detach 6 | . . 1 . . . 2 . . 2 . 1 . . . . . . Swap 73 | . 1 3 . 4 3 3 7 1 7 2 12 . 4 16 2 5 3 Drop 119 | . 1 8 . 11 4 12 8 . 22 3 8 . 4 18 1 10 9 Fire 236 | . 23 44 . . . . . . . . 38 . 2 49 9 37 34 Melee 419 | . . . . . 23 79 53 5 101 11 27 26 31 14 11 38 . Ram . | . . . . . . . . . . . . . . . . . . Kick . | . . . . . . . . . . . . . . . . . . Crush 6 | . . . . . . . . . . . . . . . . . 6 Escape Stasis 104 | . . . . . . 56 . . 33 . . . . 2 . . 13 Rewire 80 | . . . . . . 23 2 . 24 6 3 1 3 16 1 1 . Trap 61 | . . . . 52 1 . . . 1 . 4 . . . . 3 . Miscellaneous . | . . . . . . . . . . . . . . . . . . Route ------- -11/Junkyard -10/Materials -10/Mines (discovered 2 exits: [*Mat] / *Exi) -10/Exiles (discovered 2 exits: *Min x2) -9/Mines -8/Materials -8/Garrison (discovered 3 exits: *Mat x3) -8/Materials -7/Factory -7/Garrison (discovered 3 exits: *Fac x3) -6/Factory -6/Garrison (discovered 3 exits: [*Fac x3]) -6/Factory -5/Factory -5/Garrison (discovered 2 exits: *Fac x2) -5/Factory -5/Garrison -4/Factory History --------- Turn | Location | Event 12 | -11/Junkyard | Discovered new exit (range 15) 67 | -11/Junkyard | Entered Materials 318 | -10/Materials | Build established: Mutant 527 | -10/Materials | Discovered new exit (range 15) 578 | -10/Materials | Entered Mines 589 | -10/Mines | Core integrity fell below 50% 621 | -10/Mines | Lost 5 parts (1p2n1u1w) 890 | -10/Mines | Learned location of Zion (-6) 907 | -10/Mines | Assembled infested the area 1527 | -10/Mines | Discovered new exit (range 11) 1546 | -10/Mines | Discovered new exit (range 9) 1774 | -10/Mines | Deemed a non-threat by the Exiles lab entrance 1779 | -10/Mines | Entered Exiles 1797 | -10/Exiles | Discovered new exit (range 15) 1799 | -10/Exiles | Build established: Scavenger-Mutant 1809 | -10/Exiles | Met 8R-AWN 1830 | -10/Exiles | Met EX-HEX 1861 | -10/Exiles | Met EX-BIN 1878 | -10/Exiles | Aligned with FarCom system 1879 | -10/Exiles | Given EX-Vault access code 1914 | -10/Exiles | Opened EX-Vault 1925 | -10/Exiles | Found Longsword +1 1948 | -10/Exiles | Warned to stay clear of 0b10 Research branches 1990 | -10/Exiles | Met EX-DEC 2065 | -10/Exiles | Discovered new exit (range 14) 2078 | -10/Exiles | Left Exiles lab with Longsword +1 2078 | -10/Exiles | Entered Mines 2082 | -9/Mines | Assisted by bots powering up and referring to "LRC-V3" 2304 | -9/Mines | Met a Derelict who couldn't figure out how to use a Trap Extractor 2375 | -9/Mines | Build established: Scavenger-Skirmisher 2558 | -9/Mines | Learned 2 Materials zone layouts 2736 | -9/Mines | Discovered new exit (range 15) 2770 | -9/Mines | Entered Materials 2770 | -8/Materials | Accompanied by 5 allies 2770 | -8/Materials | Evolved 4 slots: Power x1, Utility x3 2775 | -8/Materials | Led the pair of lost Derelicts to an unsafe place 2808 | -8/Materials | Build established: Assassin 2870 | -8/Materials | Garrison activated, responded to threat 3191 | -8/Materials | Build established: Scavenger-Assassin 3265 | -8/Materials | Identified exit to Garrison 3272 | -8/Materials | Entered Garrison 3353 | -8/Garrison | Garrison Relay disabled 3601 | -8/Garrison | Build established: Mutant 3838 | -8/Garrison | Discovered new exit (range 14) 3918 | -8/Garrison | Build established: Scavenger-Mutant 3984 | -8/Garrison | Triggered checkpoint 4036 | -8/Garrison | Discovered new exit (range 15) 4112 | -8/Garrison | Triggered checkpoint 4179 | -8/Garrison | Discovered new exit (range 5) 4333 | -8/Garrison | Destroyed 7 combat bots 4400 | -8/Garrison | Triggered checkpoint 4588 | -8/Garrison | Triggered checkpoint 4816 | -8/Garrison | Triggered checkpoint 4865 | -8/Garrison | Installed Relay Interface Framework 4921 | -8/Garrison | Garrison Relay disabled 5055 | -8/Garrison | Garrison Relay disabled 5198 | -8/Garrison | Garrison Relay disabled 5238 | -8/Garrison | Entered Materials 5600 | -8/Materials | Build established: Mutant 6015 | -8/Materials | Core integrity fell below 50% 6113 | -8/Materials | Discovered new exit (range 9) 6127 | -8/Materials | Entered Factory 6127 | -7/Factory | Accompanied by 2 allies 6127 | -7/Factory | Evolved 2 slots: Utility x2 6232 | -7/Factory | Build established: Bothacker-Mutant 6255 | -7/Factory | Identified exit to Garrison 6346 | -7/Factory | Entered Garrison 6346 | -7/Garrison | Accompanied by 1 ally 6651 | -7/Garrison | Garrison Relay disabled 6718 | -7/Garrison | Core integrity fell below 50% 6808 | -7/Garrison | Found embedded Infiltrators 6990 | -7/Garrison | Triggered checkpoint 7026 | -7/Garrison | Triggered checkpoint 7382 | -7/Garrison | Build established: Mutant 7886 | -7/Garrison | Discovered new exit (range 14) 8050 | -7/Garrison | Triggered checkpoint 8203 | -7/Garrison | Garrison Relay disabled 8380 | -7/Garrison | Triggered checkpoint 8673 | -7/Garrison | Discovered new exit (range 10) 8688 | -7/Garrison | Build established: Commander-Mutant 8840 | -7/Garrison | Triggered checkpoint 8881 | -7/Garrison | Core integrity fell below 20% 8945 | -7/Garrison | Destroyed 7 combat bots 9039 | -7/Garrison | Expanded RIF knowledge: Robot Detection 9120 | -7/Garrison | Garrison Relay disabled 9435 | -7/Garrison | Discovered new exit (range 9) 9513 | -7/Garrison | Phase Generator disabled 9529 | -7/Garrison | Met a derelict Sapper fleeing the area 9530 | -7/Garrison | Triggered checkpoint 9863 | -7/Garrison | Build established: Mutant 9929 | -7/Garrison | Entered Factory 9929 | -6/Factory | Accompanied by 2 allies 9929 | -6/Factory | Evolved 2 slots: Propulsion x2 10293 | -6/Factory | Build established: Bothacker-Mutant 10629 | -6/Factory | First assault squad dispatched 10745 | -6/Factory | Identified exit to Garrison 10751 | -6/Factory | Entered Garrison 10751 | -6/Garrison | Accompanied by 8 allies 11174 | -6/Garrison | Triggered checkpoint 11196 | -6/Garrison | Garrison Relay disabled 11223 | -6/Garrison | Garrison Relay disabled 11276 | -6/Garrison | Expanded RIF knowledge: Signal Jamming 11970 | -6/Garrison | Triggered checkpoint 12000 | -6/Garrison | Triggered checkpoint 12190 | -6/Garrison | Found embedded Infiltrators 12196 | -6/Garrison | Discovered new exit (range 10) 12222 | -6/Garrison | Triggered checkpoint 12264 | -6/Garrison | Learned Factory security intel 12293 | -6/Garrison | Garrison Relay disabled 12406 | -6/Garrison | Triggered checkpoint 12422 | -6/Garrison | Triggered checkpoint 12538 | -6/Garrison | Discovered new exit (range 11) 12541 | -6/Garrison | Spotted B-75 Beast 12711 | -6/Garrison | Spotted B-86 Titan 12731 | -6/Garrison | Destroyed B-86 Titan 12883 | -6/Garrison | Rewired B-75 Beast 12904 | -6/Garrison | Rewired B-75 Beast 13340 | -6/Garrison | Triggered checkpoint 13460 | -6/Garrison | Garrison Relay disabled 13484 | -6/Garrison | Garrison Relay disabled 13516 | -6/Garrison | Triggered checkpoint 13552 | -6/Garrison | Discovered new exit (range 11) 13601 | -6/Garrison | Expanded RIF knowledge: Autoassimilate 13901 | -6/Garrison | Build established: Botlord-Mutant 13982 | -6/Garrison | Entered Factory 13982 | -6/Factory | Accompanied by 7 allies 14293 | -6/Factory | Discovered new exit (range 10) 14682 | -6/Factory | First assault squad dispatched 15608 | -6/Factory | Entered another Factory area 15608 | -5/Factory | Accompanied by 5 allies 15608 | -5/Factory | Evolved 2 slots: Utility x2 15908 | -5/Factory | First assault squad dispatched 16424 | -5/Factory | Identified exit to Garrison 16493 | -5/Factory | Cargo convoy interrupted 16943 | -5/Factory | P-70 Sage assimilated allied Slayer 6a 16952 | -5/Factory | Entered Garrison 16952 | -5/Garrison | Accompanied by 1 ally 16990 | -5/Garrison | Triggered checkpoint 17184 | -5/Garrison | Garrison Relay disabled 17516 | -5/Garrison | Triggered checkpoint 17639 | -5/Garrison | Expanded RIF knowledge: Command Fork 18082 | -5/Garrison | Triggered checkpoint 18215 | -5/Garrison | Discovered new exit (range 11) 18271 | -5/Garrison | Spotted B-75 Beast 18277 | -5/Garrison | Found Relay Coupler [Proto] 18280 | -5/Garrison | Found Relay Coupler [Proto] 18282 | -5/Garrison | Found Relay Coupler [Proto] 18285 | -5/Garrison | Found Relay Coupler [Proto] 18786 | -5/Garrison | Triggered checkpoint 18812 | -5/Garrison | Triggered checkpoint 18946 | -5/Garrison | Garrison Relay disabled 19036 | -5/Garrison | Discovered new exit (range 14) 19040 | -5/Garrison | Triggered checkpoint 19066 | -5/Garrison | Entered Factory 19073 | -5/Factory | Identified exit to Garrison 19146 | -5/Factory | Repaired Remote Datajack 19235 | -5/Factory | Repaired Broken Imp. Heavy Treads 19911 | -5/Factory | Entered Garrison 19926 | -5/Garrison | Expanded RIF knowledge: Watcher Feeds 19964 | -5/Garrison | Triggered checkpoint 20010 | -5/Garrison | Garrison Relay disabled 20390 | -5/Garrison | Triggered checkpoint 20396 | -5/Garrison | Triggered checkpoint 21980 | -5/Garrison | Triggered checkpoint 22101 | -5/Garrison | Lost 8 parts (1p2n3u2w) 22207 | -5/Garrison | Discovered new exit (range 15) 22400 | -5/Garrison | Triggered checkpoint 22522 | -5/Garrison | Triggered checkpoint 22612 | -5/Garrison | Entered Factory 22612 | -4/Factory | Accompanied by 4 allies 22612 | -4/Factory | Evolved 2 slots: Propulsion x1, Weapon x1 22711 | -4/Factory | Identified exit to Garrison 22862 | -4/Factory | First assault squad dispatched 22906 | -4/Factory | Core integrity fell below 50% 22919 | -4/Factory | Core integrity fell below 20% 22952 | -4/Factory | Lost 22 parts (3p6n9u4w) 22989 | -4/Factory | Destroyed by C-35 Carver with Improved Concussive RPG Last Messages --------------- 22940_ Field strength at 16. 22941_ Stasis field depleted. 22941_ Knocked back. 22954_ >> Watcher Feeds: Established visual feed link with W-44 Eye. 22959_ >> Watcher Feeds: Feed link from W-44 Eye lost. 22959_ >> Watcher Feeds: Established visual feed link with W-44 Eye. 22960_ >> Watcher Feeds: Feed link from W-44 Eye lost. 22964_ K-01 Serf cleans the Fusion Modulator. 22974_ >> Watcher Feeds: Established visual feed link with W-44 Eye. 22980_ >> Watcher Feeds: Feed link from W-44 Eye lost. 22980_ Triggered Blade Trap. 22980_ Massive razor-sharp blades shoot up from within the floor. 22980_ Relay Coupler [Demolisher] severed. 22983_ ALERT: Suspicious intruders detected, dispatching Cutter reinforcements to area. 22987_ Relay Coupler [NC] destroyed. 22987_ System corrupted by crushing effect (+4). 22987_ K-01 Serf knocked back. 22989_ Relay Coupler [NC] destroyed. 22989_ System corrupted by crushing effect (+2). Map ----- +----------------------------------------------------+ | ?????????????????????????????????????????????????? | | ?????????????????????????????????????????????????? | | ?????????????????????????????????????????????????? | | ?????????????????????????????????????????????????? | | ?????????????????????????????????????????????????? | | ?????????????????????????????????????????????????? | | ?????????????????????????????????????????????????? | | ?????????????????????????????????????????????????? | | ?????????????????????????????????????????????????? | | ?????????????????????????????????????????????##### | | ?????????????????????????????????????????????# | | ?????????????????????????????????????????????# | | ?????????????????????????????????????????????# | | ?????????????????????????????????????????????# | | ???????????????????????????????????? ????????# | | ????????????????????????????"""""" ????????# | | ?????????????#############??"""""" #???????# | | ??????????? # #? #???????# | | ???????????cc #? +???????# | | ????????????# #? #???????# | | ????????????# #? ?????????# | | ?????????h??# c # ]! ???????????# | | ????????????# = # ]! ?????????????##### | | ????????????# c # ]???????????????????? | | ???????? ??# # ?????????????????????? | | ??????# ?+ @#??????????????????????? | | ??????# ?# k #??????????????????????? | | ??????# # #??????????????????????? | | ??????# # #??????????????????????? | | ?????## h ###+##### #??????????????????????? | | ????? ### ##??????????????????????? | | ?????? #?## ##???????????????????????? | | ??????? #??# #?##############?????????? | | ???????? #??# #?# #????????## | | ??????????? #??# #?# +???????? | | ?????????????# #??# #?# #????????# | | ?????????????# #### ### """ """ #????????# | | ?????????????# # """ """ #????????# | | ?????????????# # """ """ #????????# | | ?????????????# +g HC g ########## | | ?????????????# # """ """ / | | ?????????????# # """ """ ####### ### | | ?????????????# ######## """ """ #?????# #?? | | ?????????????# #??????# #?????# #?? | | ?????????????+ #??????# #?????# #?? | | ?#######?????# T#?????##############?????# #?? | | #?????# #?????##############???### ### | | #?????# ##?????# #???# %# | | #?????# #??????# !!! ##### " | | ?""""" #?????# #??????# !! + "T | +----------------------------------------------------+ Best States ------------- Heat Dissipation 43 Energy Generation 32 Energy Capacity 525 Matter Stores 300 Matter Capacity 300 Sight Range 16 Terrain Scan Range 16 Terrain Scan Density 110 Armor Coverage 750 Resistance: KI 30 Weapon Shielding 66 Evasion (%) 55 Melee Accuracy 5 Recoil Reduction 5 Relay Coupler Types 6 Relay Coupler Value 141 Trap Extractor Capacity 6 Item Schematics ----------------- Hacking Suite | -8/Materials | Scanalyzed System Shield | -8/Materials | Scanalyzed Lyr. Light Armor Plating | -8/Materials | Scanalyzed Arm. Huge Wheel | -8/Materials | Scanalyzed Robot Schematics ------------------ None Fabricated ------------ Nothing Alien Tech Used ----------------- None Achievements -------------- None Challenges ------------ None Game ------ Seed DecoyFusionNanosword Manual? 0 Play Time 02:11:32 Cumulative 411.3 hours Start 2023.10.10 @ 20:05:05 End 2023.10.11 @ 09:56:38 Sessions 7 Manual Loads 0 Difficulty Rogue Special Mode None Game No. 729 Rogue 574 Adventurer 148 Explorer 7 Win Type - Total 17 Types 15/0/1/1/0/0/0/0/0 Lore% 78 Gallery% 89 Achievement% 72 Wizard Run 0 Options --------- ASCII 0 Keyboard 0 Movement Numpad Keybinds 0 Fullscreen 2 Font 18/SmallcapsGlow Map View 76x50 Tactical HUD 1 Map Filters NONE Filters NONE Steam 1 RUN: e5816706-af71-4845-a565-4339144f943a